fUST/lending_fUST_20250927
["ID","MTS","AMOUNT","RATE_DAILY","PERIOD"]
[388019077,1758966649077,-480.0,0.0003589,9]
[388019078,1758966649087,-480.0,0.0003589,9]
[388019079,1758966649097,-480.0,0.0003589,9]
[388019080,1758966649106,-480.0,0.0003589,9]
[388019081,1758966649117,-480.0,0.0003589,9]
[388019082,1758966649126,-480.0,0.0003589,9]
[388019083,1758966649135,-1000.0,0.0003589,9]
[388019084,1758966649145,-480.0,0.0003589,9]
[388019085,1758966649155,-480.0,0.0003589,9]
[388019086,1758966649164,-480.0,0.0003589,9]
[388019087,1758966649174,-480.0,0.0003589,9]
[388019088,1758966649184,-480.0,0.0003589,9]
[388019089,1758966649193,-480.0,0.0003589,9]
[388019090,1758966649203,-495.37703143,0.0003589,9]
[388019091,1758966649212,-480.0,0.0003589,9]
[388019092,1758966649222,-480.0,0.0003589,9]
[388019093,1758966649232,-480.0,0.0003589,9]
[388019094,1758966649242,-480.0,0.0003589,9]
[388019095,1758966649252,-480.0,0.0003589,9]
[388019096,1758966649261,-480.0,0.0003589,9]
[388019097,1758966649271,-480.0,0.0003589,9]
[388019098,1758966649280,-480.0,0.0003589,9]
[388019099,1758966649290,-480.0,0.0003589,9]
[388019100,1758966649300,-480.0,0.0003589,9]
[388019101,1758966649310,-480.0,0.0003589,9]
[388019102,1758966649319,-520.25,0.0003589,9]
[388019103,1758966649335,-480.0,0.0003589,9]
[388019104,1758966649344,-485.13934204,0.0003589,9]
[388019105,1758966649354,-1007.24,0.0003589,9]
[388019106,1758966649364,-480.0,0.0003589,9]
[388019107,1758966649377,-480.0,0.0003589,9]
[388019108,1758966649387,-480.0,0.0003589,9]
[388019109,1758966649398,-1095.95,0.0003589,9]
[388019110,1758966649409,-1143.57,0.0003589,9]
[388019111,1758966649419,-740.34,0.0003589,9]
[388019112,1758966649428,-439.20167704,0.0003589,9]
[388019113,1758966649438,-480.0,0.0003589,9]
[388019114,1758966649448,-541.41,0.0003589,9]
[388019115,1758966649457,-480.0,0.0003589,9]
[388019116,1758966649466,-480.0,0.0003589,9]
[388019117,1758966649476,-748.9,0.0003589,9]
[388019118,1758966649485,-480.0,0.0003589,9]
[388019119,1758966649494,-480.0,0.0003589,9]
[388019120,1758966649503,-480.0,0.0003589,9]
[388019121,1758966649512,-480.0,0.0003589,9]
[388019122,1758966649522,-480.0,0.0003589,9]
[388019123,1758966649531,-482.17568864,0.0003589,9]
[388019124,1758966649541,-480.0,0.0003589,9]
[388019125,1758966649550,-480.0,0.0003589,9]
[388019126,1758966649560,-480.0,0.0003589,9]
[388019127,1758966649569,-480.0,0.0003589,9]
[388019128,1758966649579,-480.0,0.0003589,9]
[388019129,1758966649588,-480.0,0.0003589,9]
[388019130,1758966649598,-582.22,0.0003589,9]
[388019131,1758966649608,-480.0,0.0003589,9]
[388019132,1758966649617,-2451.88,0.0003589,9]
[388019133,1758966649627,-480.0,0.0003589,9]
[388019134,1758966649636,-480.0,0.0003589,9]
[388019135,1758966649645,-1145.06,0.0003589,9]
[388019136,1758966649656,-480.0,0.0003589,9]
[388019137,1758966649666,-480.0,0.0003589,9]
[388019138,1758966649675,-480.0,0.0003589,9]
[388019139,1758966649684,-480.0,0.0003589,9]
[388019140,1758966649693,-480.0,0.0003589,9]
[388019141,1758966649703,-480.0,0.0003589,9]
[388019142,1758966649713,-571.22,0.0003589,9]
[388019143,1758966649722,-480.0,0.0003589,9]
[388019144,1758966649731,-480.0,0.0003589,9]
[388019145,1758966649741,-480.0,0.0003589,9]
[388019146,1758966649750,-480.0,0.0003589,9]
[388019147,1758966649760,-480.0,0.0003589,9]
[388019148,1758966649769,-480.0,0.0003589,9]
[388019149,1758966649778,-480.0,0.0003589,9]
[388019150,1758966649788,-480.0,0.0003589,9]
[388019151,1758966649797,-797.02,0.0003589,9]
[388019152,1758966649807,-499.29,0.0003589,9]
[388019153,1758966649817,-480.0,0.0003589,9]
[388019154,1758966649826,-657.87,0.0003589,9]
[388019155,1758966649837,-480.0,0.0003589,9]
[388019156,1758966649846,-2994.11,0.0003589,9]
[388019157,1758966649855,-1417.85,0.0003589,9]
[388019158,1758966649865,-480.0,0.0003589,9]
[388019159,1758966649875,-729.54,0.0003589,9]
[388019160,1758966649884,-992.5,0.0003589,9]
[388019161,1758966649893,-480.0,0.0003589,9]
[388019162,1758966649903,-480.0,0.0003589,9]
[388019163,1758966649912,-494.65,0.0003589,9]
[388019164,1758966649921,-761.03,0.0003589,9]
[388019165,1758966649930,-2199.35,0.0003589,9]
[388019166,1758966649940,-347.61867996,0.0003589,9]
[388019167,1758966649948,-480.0,0.0003589,9]
[388019168,1758966649958,-480.0,0.0003589,9]
[388019169,1758966649967,-480.0,0.0003589,9]
[388019170,1758966649976,-216.95075534,0.0003589,9]
[388019171,1758966649985,-864.5,0.0003589,9]
[388019172,1758966649995,-480.0,0.0003589,9]
[388019173,1758966650004,-491.15562936,0.0003589,9]
[388019174,1758966650013,-480.0,0.0003589,9]
[388019175,1758966650023,-486.63261636,0.0003589,9]
[388019176,1758966650032,-480.0,0.0003589,9]
[388019177,1758966650041,-480.0,0.0003589,9]
[388019178,1758966650050,-480.0,0.0003589,9]
[388019179,1758966650060,-726.98,0.0003589,9]
[388019180,1758966650069,-480.0,0.0003589,9]
[388019181,1758966650079,-1376.28,0.0003589,9]
[388019182,1758966650088,-480.0,0.0003589,9]
[388019183,1758966650097,-480.0,0.0003589,9]
[388019184,1758966650107,-480.0,0.0003589,9]
[388019185,1758966650117,-480.0,0.0003589,9]
[388019186,1758966650128,-480.0,0.0003589,9]
[388019187,1758966650137,-480.0,0.0003589,9]
[388019188,1758966650146,-480.0,0.0003589,9]
[388019189,1758966650155,-480.0,0.0003589,9]
[388019190,1758966650164,-1033.85,0.0003589,9]
[388019191,1758966650174,-480.0,0.0003589,9]
[388019192,1758966650183,-480.0,0.0003589,9]
[388019193,1758966650192,-480.0,0.0003589,9]
[388019194,1758966650203,-1113.49,0.0003589,9]
[388019195,1758966650212,-480.0,0.0003589,9]
[388019196,1758966650222,-1162.86,0.0003589,9]
[388019197,1758966650234,-480.0,0.0003589,9]
[388019198,1758966650244,-3133.19,0.0003589,9]
[388019199,1758966650254,-480.0,0.0003589,9]
[388019200,1758966650263,-480.0,0.0003589,9]
[388019201,1758966650272,-480.0,0.0003589,9]
[388019202,1758966650282,-480.0,0.0003589,9]
[388019203,1758966650291,-2390.15,0.0003589,9]
[388019204,1758966650300,-480.0,0.0003589,9]
[388019205,1758966650310,-1237.79,0.0003589,9]
[388019206,1758966650319,-1044.74,0.0003589,9]
[388019207,1758966650336,-480.0,0.0003589,9]
[388019208,1758966650346,-480.0,0.0003589,9]
[388019209,1758966650356,-729.87,0.0003589,9]
[388019210,1758966650365,-480.0,0.0003589,9]
[388019211,1758966650376,-480.0,0.0003589,9]
[388019212,1758966650385,-480.0,0.0003589,9]
[388019213,1758966650395,-512.9,0.0003589,9]
[388019214,1758966650404,-480.0,0.0003589,9]
[388019215,1758966650415,-589.01,0.0003589,9]
[388019216,1758966650424,-534.27,0.0003589,9]
[388019217,1758966650433,-480.0,0.0003589,9]
[388019218,1758966650442,-960.15,0.0003589,9]
[388019219,1758966650451,-480.0,0.0003589,9]
[388019220,1758966650460,-2202.81,0.0003589,9]
[388019221,1758966650470,-480.0,0.0003589,9]
[388019222,1758966650479,-1104.59,0.0003589,9]
[388019223,1758966650488,-1192.62,0.0003589,9]
[388019224,1758966650497,-480.0,0.0003589,9]
[388019225,1758966650507,-480.0,0.0003589,9]
[388019226,1758966650516,-480.0,0.0003589,9]
[388019227,1758966650526,-480.0,0.0003589,9]
[388019228,1758966650535,-480.0,0.0003589,9]
[388019229,1758966650544,-486.42888643,0.0003589,9]
[388019230,1758966650553,-480.0,0.0003589,9]
[388019231,1758966650563,-480.0,0.0003589,9]
[388019232,1758966650572,-663.65,0.0003589,9]
[388019233,1758966650581,-1085.61,0.0003589,9]
[388019234,1758966650591,-480.0,0.0003589,9]
[388019235,1758966650600,-480.0,0.0003589,9]
[388019236,1758966650610,-480.0,0.0003589,9]
[388019237,1758966650619,-1208.5,0.0003589,9]
[388019238,1758966650629,-518.94,0.0003589,9]
[388019239,1758966650638,-3553.6,0.0003589,9]
[388019240,1758966650646,-480.0,0.0003589,9]
[388019241,1758966650656,-480.0,0.0003589,9]
[388019242,1758966650665,-480.0,0.0003589,9]
[388019243,1758966650674,-480.0,0.0003589,9]
[388019244,1758966650683,-480.0,0.0003589,9]
[388019245,1758966650693,-480.0,0.0003589,9]
[388019246,1758966650703,-896.11,0.0003589,9]
[388019247,1758966650712,-440.37067205,0.0003589,9]
[388019248,1758966650865,-3521.55,0.0003589,9]
[388019249,1758966650875,-480.0,0.0003589,9]
[388019250,1758966650885,-480.0,0.0003589,9]
[388019251,1758966650894,-1893.78,0.0003589,9]
[388019252,1758966650903,-480.0,0.0003589,9]
[388019253,1758966650912,-1245.6,0.0003589,9]
[388019254,1758966650921,-480.0,0.0003589,9]
[388019255,1758966650931,-480.0,0.0003589,9]
[388019256,1758966650940,-480.0,0.0003589,9]
[388019257,1758966650949,-480.0,0.0003589,9]
[388019258,1758966650958,-480.0,0.0003589,9]
[388019259,1758966650967,-480.0,0.0003589,9]
[388019260,1758966650976,-480.0,0.0003589,9]
[388019261,1758966650985,-934.98,0.0003589,9]
[388019262,1758966650994,-480.0,0.0003589,9]
[388019263,1758966651004,-1407.89,0.0003589,9]
[388019264,1758966651014,-600.0,0.0003589,9]
[388019265,1758966651023,-695.67,0.0003589,9]
[388019266,1758966651033,-480.0,0.0003589,9]
[388019267,1758966651043,-809.65,0.0003589,9]
[388019268,1758966651052,-480.0,0.0003589,7]
[388019269,1758966651062,-480.0,0.0003589,9]
[388019270,1758966651071,-480.0,0.0003589,9]
[388019271,1758966651081,-1059.74,0.0003589,9]
[388019272,1758966651090,-5378.31,0.0003589,9]
[388019273,1758966651099,-480.0,0.0003589,9]
[388019274,1758966651108,-480.0,0.0003589,9]
[388019275,1758966651118,-1567.83,0.0003589,9]
[388019276,1758966651127,-486.24949805,0.0003589,9]
[388019277,1758966651136,-480.0,0.0003589,9]
[388019278,1758966651146,-480.0,0.0003589,9]
[388019279,1758966651155,-480.0,0.0003589,9]
[388019280,1758966651164,-480.0,0.0003589,9]
[388019281,1758966651174,-480.0,0.0003589,9]
[388019282,1758966651183,-710.01,0.0003589,9]
[388019283,1758966651192,-710.01,0.0003589,9]
[388019284,1758966651202,-528.22324594,0.0003589,9]
[388019285,1758966651211,-480.0,0.0003589,9]
[388019286,1758966651220,-480.0,0.0003589,9]
[388019287,1758966651230,-500.0,0.0003589,9]
[388019288,1758966651239,-480.0,0.0003589,9]
[388019289,1758966651248,-480.0,0.0003589,9]
[388019290,1758966651257,-776.45,0.0003589,9]
[388019291,1758966651267,-480.0,0.0003589,9]
[388019292,1758966651276,-1797.55,0.0003589,9]
[388019293,1758966651285,-480.0,0.0003589,9]
[388019294,1758966651295,-480.0,0.0003589,9]
[388019295,1758966651304,-2320.13,0.0003589,9]
[388019296,1758966651315,-480.0,0.0003589,9]
[388019297,1758966651329,-480.0,0.0003589,9]
[388019298,1758966651338,-480.0,0.0003589,9]
[388019299,1758966651348,-480.0,0.0003589,9]
[388019300,1758966651357,-480.0,0.0003589,9]
[388019301,1758966651367,-852.61,0.0003589,9]
[388019302,1758966651376,-480.0,0.0003589,9]
[388019303,1758966651386,-480.0,0.0003589,9]
[388019304,1758966651395,-480.0,0.0003589,9]
[388019305,1758966651409,-480.0,0.0003589,9]
[388019306,1758966651418,-817.82,0.0003589,9]
[388019307,1758966651428,-480.0,0.0003589,9]
[388019308,1758966651438,-629.14762244,0.0003589,9]
[388019309,1758966651449,-480.0,0.0003589,9]
[388019310,1758966651459,-480.0,0.0003589,9]
[388019311,1758966651468,-480.0,0.0003589,9]
[388019312,1758966651478,-480.0,0.0003589,9]
[388019313,1758966651488,-480.0,0.0003589,9]
[388019314,1758966651498,-480.0,0.0003589,9]
[388019315,1758966651508,-480.0,0.0003589,9]
[388019316,1758966651518,-1456.61,0.0003589,9]
[388019317,1758966651528,-480.0,0.0003589,9]
[388019318,1758966651537,-480.0,0.0003589,9]
[388019319,1758966651547,-1004.68,0.0003589,9]
[388019320,1758966651556,-1441.83,0.0003589,9]
[388019321,1758966651566,-480.0,0.0003589,9]
[388019322,1758966651576,-687.2,0.0003589,9]
[388019323,1758966651585,-480.0,0.0003589,9]
[388019324,1758966651595,-480.0,0.0003589,9]
[388019325,1758966651604,-480.0,0.0003589,9]
[388019326,1758966651614,-2667.68,0.0003589,9]
[388019327,1758966651623,-480.0,0.0003589,9]
[388019328,1758966651635,-480.0,0.0003589,9]
[388019329,1758966651644,-486.24,0.0003589,9]
[388019330,1758966651654,-721.14,0.0003589,9]
[388019331,1758966651663,-480.0,0.0003589,9]
[388019332,1758966651672,-3342.96,0.0003589,9]
[388019333,1758966651682,-480.0,0.0003589,9]
[388019334,1758966651692,-480.0,0.0003589,9]
[388019335,1758966651702,-4872.35,0.0003589,9]
[388019336,1758966651712,-480.0,0.0003589,9]
[388019337,1758966651721,-480.0,0.0003589,9]
[388019338,1758966651731,-1500.9,0.0003589,9]
[388019339,1758966651741,-8390.61,0.0003589,9]
[388019340,1758966651750,-480.0,0.0003589,9]
[388019341,1758966651760,-480.0,0.0003589,9]
[388019342,1758966651770,-8207.9,0.0003589,9]
[388019343,1758966651780,-549.02532706,0.0003589,9]
[388019344,1758966651790,-480.0,0.0003589,9]
[388019345,1758966651800,-1152.65,0.0003589,9]
[388019346,1758966651810,-480.0,0.0003589,9]
[388019347,1758966651820,-480.0,0.0003589,9]
[388019348,1758966651830,-480.0,0.0003589,9]
[388019349,1758966651840,-480.0,0.0003589,9]
[388019350,1758966651850,-480.0,0.0003589,9]
[388019351,1758966651859,-480.0,0.0003589,9]
[388019352,1758966651869,-921.08,0.0003589,9]
[388019353,1758966651879,-582.96,0.0003589,9]
[388019354,1758966651888,-3281.9,0.0003589,9]
[388019355,1758966651898,-596.97,0.0003589,9]
[388019356,1758966651908,-2334.14,0.0003589,9]
[388019357,1758966651918,-803.84,0.0003589,9]
[388019358,1758966651927,-480.0,0.0003589,9]
[388019359,1758966651937,-688.1,0.0003589,9]
[388019360,1758966651949,-480.0,0.0003589,9]
[388019361,1758966651959,-719.27,0.0003589,9]
[388019362,1758966651968,-2183.08,0.0003589,9]
[388019363,1758966651978,-480.0,0.0003589,9]
[388019364,1758966651988,-480.0,0.0003589,9]
[388019365,1758966651997,-723.3,0.0003589,9]
[388019366,1758966652007,-480.0,0.0003589,9]
[388019367,1758966652017,-480.0,0.0003589,9]
[388019368,1758966652026,-512.0,0.0003589,9]
[388019369,1758966652036,-480.0,0.0003589,9]
[388019370,1758966652046,-597.43,0.0003589,9]
[388019371,1758966652056,-667.72,0.0003589,9]
[388019372,1758966652065,-545.36,0.0003589,9]
[388019373,1758966652075,-480.0,0.0003589,9]
[388019374,1758966652084,-482.52426494,0.0003589,9]
[388019375,1758966652094,-1048.06,0.0003589,9]
[388019376,1758966652103,-480.0,0.0003589,9]
[388019377,1758966652113,-2744.62,0.0003589,9]
[388019378,1758966652123,-480.0,0.0003589,9]
[388019379,1758966652132,-480.0,0.0003589,9]
[388019380,1758966652142,-480.0,0.0003589,9]
[388019381,1758966652152,-501.77,0.0003589,9]
[388019382,1758966652162,-1000.0,0.0003589,9]
[388019383,1758966652171,-1896.58,0.0003589,9]
[388019384,1758966652181,-480.0,0.0003589,9]
[388019385,1758966652192,-480.0,0.0003589,9]
[388019386,1758966652202,-480.0,0.0003589,9]
[388019387,1758966652213,-480.0,0.0003589,9]
[388019388,1758966652223,-587.89,0.0003589,9]
[388019389,1758966652232,-480.0,0.0003589,9]
[388019390,1758966652242,-3611.53,0.0003589,9]
[388019391,1758966652252,-480.0,0.0003589,9]
[388019392,1758966652261,-3921.83,0.0003589,9]
[388019393,1758966652271,-739.34,0.0003589,9]
[388019394,1758966652280,-480.0,0.0003589,9]
[388019395,1758966652289,-480.0,0.0003589,9]
[388019396,1758966652299,-480.0,0.0003589,9]
[388019397,1758966652308,-1044.96,0.0003589,9]
[388019398,1758966652319,-3854.54,0.0003589,9]
[388019399,1758966652328,-480.0,0.0003589,9]
[388019400,1758966652338,-711.81,0.0003589,9]
[388019401,1758966652348,-2061.79,0.0003589,9]
[388019402,1758966652357,-4529.11,0.0003589,9]
[388019403,1758966652367,-908.95,0.0003589,9]
[388019404,1758966652376,-480.0,0.0003589,9]
[388019405,1758966652386,-4586.51,0.0003589,9]
[388019406,1758966652395,-480.0,0.0003589,9]
[388019407,1758966652405,-2282.96,0.0003589,9]
[388019408,1758966652414,-480.0,0.0003589,9]
[388019409,1758966652424,-480.0,0.0003589,9]
[388019410,1758966652434,-642.28,0.0003589,9]
[388019411,1758966652443,-1558.66,0.0003589,9]
[388019412,1758966652453,-522.97,0.0003589,9]
[388019413,1758966652462,-480.0,0.0003589,9]
[388019414,1758966652472,-480.0,0.0003589,9]
[388019415,1758966652482,-480.0,0.0003589,9]
[388019416,1758966652491,-563.22,0.0003589,9]
[388019417,1758966652500,-480.0,0.0003589,9]
[388019418,1758966652510,-2342.73,0.0003589,9]
[388019419,1758966652519,-480.0,0.0003589,9]
[388019420,1758966652529,-2094.05,0.0003589,9]
[388019421,1758966652539,-15362.97,0.0003589,9]
[388019422,1758966652548,-255.34312661,0.0003589,9]
[388019423,1758966652558,-8443.92,0.0003589,9]
[388019424,1758966652567,-480.0,0.0003589,9]
[388019425,1758966652576,-480.0,0.0003589,9]
[388019426,1758966652586,-480.0,0.0003589,9]
[388019427,1758966652595,-1581.11,0.0003589,9]
[388019428,1758966652604,-480.0,0.0003589,9]
[388019429,1758966652614,-480.0,0.0003589,9]
[388019430,1758966652624,-534.35,0.0003589,9]
[388019431,1758966652633,-480.0,0.0003589,9]
[388019432,1758966652643,-480.0,0.0003589,9]
[388019433,1758966652652,-1385.88,0.0003589,9]
[388019434,1758966652661,-480.0,0.0003589,9]
[388019435,1758966652671,-480.0,0.0003589,9]
[388019436,1758966652681,-480.0,0.0003589,9]
[388019437,1758966652692,-763.91,0.0003589,9]
[388019438,1758966652701,-602.81,0.0003589,9]
[388019439,1758966652711,-480.0,0.0003589,9]
[388019440,1758966652721,-480.0,0.0003589,9]
[388019441,1758966652731,-480.0,0.0003589,9]
[388019442,1758966652741,-177.2919546,0.0003589,9]
[388019443,1758966652750,-987.64,0.0003589,9]
[388019444,1758966652760,-4012.81,0.0003589,9]
[388019445,1758966652770,-616.43,0.0003589,9]
[388019446,1758966652780,-480.0,0.0003589,9]
[388019447,1758966652790,-480.0,0.0003589,9]
[388019448,1758966652799,-4465.37,0.0003589,9]
[388019449,1758966652809,-480.0,0.0003589,9]
[388019450,1758966652819,-480.0,0.0003589,9]
[388019451,1758966652828,-852.15,0.0003589,9]
[388019452,1758966652838,-480.0,0.0003589,9]
[388019453,1758966652859,-480.0,0.0003589,9]
[388019454,1758966652868,-480.0,0.0003589,9]
[388019455,1758966652878,-480.0,0.0003589,9]
[388019456,1758966652888,-480.0,0.0003589,9]
[388019457,1758966652898,-480.0,0.0003589,9]
[388019458,1758966652908,-1098.08,0.0003589,9]
[388019459,1758966652919,-480.0,0.0003589,9]
[388019460,1758966652929,-480.0,0.0003589,9]
[388019461,1758966652939,-480.0,0.0003589,9]
[388019462,1758966652950,-480.0,0.0003589,9]
[388019463,1758966652960,-2241.75,0.0003589,9]
[388019464,1758966652969,-603.43,0.0003589,9]
[388019465,1758966652979,-1567.34,0.0003589,9]
[388019466,1758966652990,-746.13,0.0003589,9]
[388019467,1758966653001,-1564.86,0.0003589,9]
[388019468,1758966653011,-480.0,0.0003589,9]
[388019469,1758966653021,-1722.82,0.0003589,9]
[388019470,1758966653031,-480.0,0.0003589,9]
[388019471,1758966653042,-2340.95,0.0003589,9]
[388019472,1758966653052,-579.68,0.0003589,9]
[388019473,1758966653062,-480.0,0.0003589,9]
[388019474,1758966653072,-480.0,0.0003589,9]
[388019475,1758966653082,-992.33,0.0003589,9]
[388019476,1758966653092,-480.0,0.0003589,9]
[388019477,1758966653102,-480.0,0.0003589,9]
[388019478,1758966653112,-480.0,0.0003589,9]
[388019479,1758966653122,-1120.98,0.0003589,9]
[388019480,1758966653132,-3928.33,0.0003589,9]
[388019481,1758966653142,-480.0,0.0003589,9]
[388019482,1758966653152,-837.87,0.0003589,9]
[388019483,1758966653162,-480.0,0.0003589,9]
[388019484,1758966653171,-480.0,0.0003589,9]
[388019485,1758966653181,-480.0,0.0003589,9]
[388019486,1758966653191,-3720.81,0.0003589,9]
[388019487,1758966653201,-480.0,0.0003589,9]
[388019488,1758966653211,-482.12680109,0.0003589,9]
[388019489,1758966653221,-953.46,0.0003589,9]
[388019490,1758966653231,-819.29,0.0003589,9]
[388019491,1758966653240,-480.0,0.0003589,9]
[388019492,1758966653251,-2063.8,0.0003589,9]
[388019493,1758966653260,-480.0,0.0003589,9]
[388019494,1758966653271,-663.61,0.0003589,9]
[388019495,1758966653280,-875.75,0.0003589,9]
[388019496,1758966653291,-480.0,0.0003589,9]
[388019497,1758966653301,-480.0,0.0003589,9]
[388019498,1758966653311,-839.85,0.0003589,9]
[388019499,1758966653321,-610.78,0.0003589,9]
[388019500,1758966653331,-929.67,0.0003589,9]
[388019501,1758966653341,-480.0,0.0003589,7]
[388019502,1758966653350,-6140.26,0.0003589,9]
[388019503,1758966653360,-480.0,0.0003589,9]
[388019504,1758966653370,-2219.09,0.0003589,9]
[388019505,1758966653380,-480.0,0.0003589,9]
[388019506,1758966653390,-480.0,0.0003589,9]
[388019507,1758966653402,-480.0,0.0003589,9]
[388019508,1758966653413,-162.86902007,0.0003589,9]
[388019509,1758966653423,-480.0,0.0003589,9]
[388019510,1758966653432,-480.0,0.0003589,9]
[388019511,1758966653442,-802.99,0.0003589,9]
[388019512,1758966653451,-806.03,0.0003589,9]
[388019513,1758966653461,-480.0,0.0003589,9]
[388019514,1758966653470,-480.0,0.0003589,9]
[388019515,1758966653480,-2858.29,0.0003589,9]
[388019516,1758966653489,-480.0,0.0003589,9]
[388019517,1758966653499,-480.0,0.0003589,9]
[388019518,1758966653508,-480.0,0.0003589,9]
[388019519,1758966653517,-480.0,0.0003589,9]
[388019520,1758966653527,-480.0,0.0003589,9]
[388019521,1758966653537,-480.0,0.0003589,9]
[388019522,1758966653547,-2642.68,0.0003589,9]
[388019523,1758966653556,-483.79337983,0.0003589,9]
[388019524,1758966653565,-480.0,0.0003589,9]
[388019525,1758966653575,-754.16,0.0003589,9]
[388019526,1758966653585,-480.0,0.0003589,9]
[388019527,1758966653595,-480.0,0.0003589,9]
[388019528,1758966653605,-7888.78,0.0003589,9]
[388019529,1758966653614,-480.0,0.0003589,9]
[388019530,1758966653624,-480.0,0.0003589,9]
[388019531,1758966653634,-5365.87,0.0003589,9]
[388019532,1758966653643,-2272.12,0.0003589,9]
[388019533,1758966653833,-480.0,0.0003589,9]
[388019534,1758966653843,-3965.91,0.0003589,9]
[388019535,1758966653853,-610.94,0.0003589,9]
[388019536,1758966653863,-480.0,0.0003589,9]
[388019537,1758966653872,-483.42,0.0003589,9]
[388019538,1758966653882,-480.0,0.0003589,9]
[388019539,1758966653891,-499.21,0.0003589,9]
[388019540,1758966653901,-480.0,0.0003589,9]
[388019541,1758966653911,-1655.85,0.0003589,9]
[388019542,1758966653921,-480.0,0.0003589,9]
[388019543,1758966653931,-600.79,0.0003589,9]
[388019544,1758966653940,-480.0,0.0003589,9]
[388019545,1758966653950,-1073.05,0.0003589,9]
[388019546,1758966653959,-480.0,0.0003589,9]
[388019547,1758966653968,-480.0,0.0003589,9]
[388019548,1758966653979,-480.0,0.0003589,9]
[388019549,1758966653988,-480.0,0.0003589,9]
[388019550,1758966653997,-480.0,0.0003589,9]
[388019551,1758966654006,-480.0,0.0003589,9]
[388019552,1758966654015,-822.55,0.0003589,9]
[388019553,1758966654025,-480.0,0.0003589,9]
[388019554,1758966654035,-480.0,0.0003589,9]
[388019555,1758966654045,-480.0,0.0003589,9]
[388019556,1758966654054,-535.77,0.0003589,9]
[388019557,1758966654064,-480.0,0.0003589,9]
[388019558,1758966654073,-480.0,0.0003589,9]
[388019559,1758966654083,-480.0,0.0003589,9]
[388019560,1758966654093,-480.0,0.0003589,9]
[388019561,1758966654102,-480.0,0.0003589,9]
[388019562,1758966654112,-311.84,0.0003589,9]
[388019563,1758966654122,-2482.63,0.0003589,9]
[388019564,1758966654132,-480.0,0.0003589,9]
[388019565,1758966654142,-480.0,0.0003589,9]
[388019566,1758966654151,-480.0,0.0003589,9]
[388019567,1758966654161,-898.13,0.0003589,9]
[388019568,1758966654171,-480.0,0.0003589,9]
[388019569,1758966654181,-1895.44,0.0003589,9]
[388019570,1758966654190,-480.0,0.0003589,9]
[388019571,1758966654200,-480.0,0.0003589,9]
[388019572,1758966654211,-1074.6,0.0003589,9]
[388019573,1758966654220,-783.0,0.00035912,2]
[388019574,1758966654231,-200.0,0.00036,120]
[388019575,1758966654240,-3123.32883054,0.00036064,2]
[388019576,1758966654250,-15299.93092143,0.00036064,2]